[Event "2nd Hersonissos Open 2018"]
[Site "Hersonissos"]
[Date "2018.06.18"]
[Round "3"]
[White "Mateev, Kaloyan Mateev"]
[Black "Maris, Ioannis"]
[Result "0-1"]
[ECO "A05"]
[WhiteElo "1539"]
[BlackElo "1915"]
[Annotator "NA"]
[PlyCount "82"]
[EventDate "2018.06.16"]
[EventType "swiss"]
[EventCountry "GRE"]
[SourceTitle "playchess.com"]
[Source "ChessBase"]
[SourceQuality "1"]
[TimeControl "5400+30"]

1. Nf3 {[%emt 0:00:00]} Nf6 {[%emt 0:02:16]} 2. b3 {[%emt 0:00:25]} c5 {[%emt 0:01:20]} 3. Bb2 {[%emt 0:00:30]} e6 {[%emt 0:00:14]} 4. e3 {[%emt 0:00:24]} Nc6 {[%emt 0:00:59]} 5. Bb5 {[%emt 0:04:53]} Be7 {[%emt 0:01:57]} 6. O-O {[%emt 0:01:18]} O-O {[%emt 0:01:43]} 7. d4 {[%emt 0:03:25]} cxd4 {[%emt 0:02:10]} 8. exd4 {[%emt 0:01:00]} Qb6 {[%emt 0:01:57]} 9. Bd3 {[%emt 0:08:03]} d6 {[%emt 0:06:12]} 10. Nbd2 {[%emt 0:04:13]} Bd7 {[%emt 0:01:07]} 11. a3 {[%emt 0:11:18]} a5 {[%emt 0:05:00]} 12. Re1 {[%emt 0:03:53]} d5 {[%emt 0:10:23]} 13. Ne5 {[%emt 0:05:24]} Be8 {[%emt 0:06:41]} 14. Ndf3 {[%emt 0:01:36]} h6 {[%emt 0:03:06]} 15. h3 {[%emt 0:05:53]} Nd7 {[%emt 0:06:23]} 16. Qe2 {[%emt 0:12:16]} Ncxe5 {[%emt 0:05:37]} 17. Nxe5 {[%emt 0:01:14]} Nxe5 {[%emt 0:06:59]} 18. dxe5 {[%emt 0:00:15]} Bc5 {[%emt 0:02:01]} 19. g4 {[%emt 0:01:39]} Rc8 {[%emt 0:01:06]} 20. Rac1 {[%emt 0:04:47]} Qd8 {[%emt 0:01:13]} 21. Kh2 {[%emt 0:02:43]} Qe7 {[%emt 0:04:21]} 22. Ra1 {[%emt 0:02:09]} b5 {[%emt 0:01:27]} 23. Rg1 {[%emt 0:01:52]} Qa7 {[%emt 0:06:11]} 24. Rg2 {[%emt 0:03:14]} Bd4 {[%emt 0:00:16]} 25. Bxd4 {[%emt 0:05:28]} Qxd4 {[%emt 0:00:03]} 26. Rag1 {[%emt 0:03:02]} g6 {[%emt 0:03:15]} 27. Qe3 {[%emt 0:02:31]} Qxe3 {[%emt 0:00:22]} 28. fxe3 {[%emt 0:00:07]} Rc3 {[%emt 0:00:16]} 29. h4 {[%emt 0:02:04]} a4 {[%emt 0:01:42]} 30. Rb1 {[%emt 0:00:36]} Bc6 {[%emt 0:00:48]} 31. Rf2 {[%emt 0:01:39]} Rc8 {[%emt 0:04:40]} 32. h5 {[%emt 0:00:32]} g5 {[%emt 0:00:45]} 33. Rff1 {[%emt 0:04:23]} axb3 {[%emt 0:00:29]} 34. Rxb3 {[%emt 0:00:10]} Rxb3 {[%emt 0:00:12]} 35. cxb3 {[%emt 0:00:04]} Bd7 {[%emt 0:00:17]} 36. Rf3 {[%emt 0:02:04]} Rc3 {[%emt 0:02:38]} 37. e4 {[%emt 0:00:17]} d4 {[%emt 0:00:04]} 38. Be2 {[%emt 0:00:32]} Rc2 {[%emt 0:00:14]} 39. Rd3 {[%emt 0:02:11]} Rxe2+ {[%emt 0:00:09]} 40. Kg3 {[%emt 0:00:00]} Rxe4 {[%emt 0:00:00]} 41. Kf3 {[%emt 0:00:00]} Bc6 {[%emt 0:00:00]} 0-1

[Event "2nd Hersonissos Open 2018"]
[Site "Hersonissos"]
[Date "2018.06.18"]
[Round "3"]
[White "Koutsouraki, Ariadni"]
[Black "Lichii, Elizaveta"]
[Result "0-1"]
[ECO "B43"]
[WhiteElo "1373"]
[BlackElo "1888"]
[Annotator "NA"]
[PlyCount "94"]
[EventDate "2018.06.16"]
[EventType "swiss"]
[EventCountry "GRE"]
[SourceTitle "playchess.com"]
[Source "ChessBase"]
[SourceQuality "1"]
[TimeControl "5400+30"]

1. e4 {[%emt 0:00:00]} c5 {[%emt 0:00:05]} 2. Nf3 {[%emt 0:00:00]} e6 {[%emt 0:00:05]} 3. d4 {[%emt 0:00:02]} cxd4 {[%emt 0:00:06]} 4. Nxd4 {[%emt 0:00:18]} a6 {[%emt 0:00:05]} 5. Nc3 {[%emt 0:03:03]} Qc7 {[%emt 0:00:04]} 6. Bd3 {[%emt 0:10:04]} Nf6 {[%emt 0:00:22]} 7. a3 {[%emt 0:03:40]} Be7 {[%emt 0:01:29]} 8. O-O {[%emt 0:00:33]} Nc6 {[%emt 0:00:20]} 9. Be3 {[%emt 0:11:03]} Ne5 {[%emt 0:11:57]} 10. Be2 {[%emt 0:06:41]} b5 {[%emt 0:11:18]} 11. f4 {[%emt 0:05:27]} Nc4 {[%emt 0:00:06]} 12. Bxc4 {[%emt 0:00:28]} Qxc4 {[%emt 0:00:21]} 13. e5 {[%emt 0:06:22]} Nd5 {[%emt 0:00:21]} 14. Nxd5 {[%emt 0:01:56]} Qxd5 {[%emt 0:00:07]} 15. Qe2 {[%emt 0:02:38]} Bb7 {[%emt 0:01:23]} 16. Nf3 {[%emt 0:00:45]} Qe4 {[%emt 0:01:12]} 17. Qf2 {[%emt 0:02:08]} Rc8 {[%emt 0:02:47]} 18. c3 {[%emt 0:02:00]} O-O {[%emt 0:02:37]} 19. Rad1 {[%emt 0:01:29]} Bd5 {[%emt 0:06:40]} 20. Rfe1 {[%emt 0:05:09]} Qg6 {[%emt 0:04:23]} 21. Rd2 {[%emt 0:04:27]} d6 {[%emt 0:04:00]} 22. Bd4 {[%emt 0:05:40]} Qf5 {[%emt 0:04:10]} 23. Qg3 {[%emt 0:05:32]} Qg6 {[%emt 0:00:43]} 24. Qf2 {[%emt 0:00:38]} Qg4 {[%emt 0:02:09]} 25. exd6 {[%emt 0:02:33]} Bxd6 {[%emt 0:00:18]} 26. Ne5 {[%emt 0:02:45]} Qf5 {[%emt 0:17:26]} 27. g4 {[%emt 0:08:42]} Qf6 {[%emt 0:00:09]} 28. Nd7 {[%emt 0:01:08]} Qxf4 {[%emt 0:00:11]} 29. Nxf8 {[%emt 0:01:26]} Qxg4+ {[%emt 0:00:09]} 30. Kf1 {[%emt 0:00:31]} Bc4+ {[%emt 0:00:36]} 31. Ree2 {[%emt 0:00:40]} Bxe2+ {[%emt 0:02:13]} 32. Rxe2 {[%emt 0:01:30]} Rxf8 {[%emt 0:00:30]} 33. Qe3 {[%emt 0:01:51]} Qf4+ {[%emt 0:00:15]} 34. Qxf4 {[%emt 0:00:09]} Bxf4 {[%emt 0:00:04]} 35. Kg2 {[%emt 0:00:30]} Rd8 {[%emt 0:00:56]} 36. Kf3 {[%emt 0:00:53]} Bc7 {[%emt 0:00:57]} 37. Rg2 {[%emt 0:00:16]} e5 {[%emt 0:01:17]} 38. Bc5 {[%emt 0:00:27]} f5 {[%emt 0:00:52]} 39. Re2 {[%emt 0:00:20]} e4+ {[%emt 0:00:34]} 40. Kg2 {[%emt 0:00:00]} Be5 {[%emt 0:00:00]} 41. h4 {[%emt 0:00:00]} g6 {[%emt 0:00:00]} 42. Be7 {[%emt 0:00:00]} Rd3 {[%emt 0:00:00]} 43. Bg5 {[%emt 0:00:00]} Kf7 {[%emt 0:00:00]} 44. Kf1 {[%emt 0:00:00]} Bf6 {[%emt 0:00:00]} 45. Bxf6 {[%emt 0:00:00]} Kxf6 {[%emt 0:00:00]} 46. Kg2 {[%emt 0:00:00]} Ke5 {[%emt 0:00:00]} 47. Kh2 {[%emt 0:00:00]} f4 {[%emt 0:00:00]} 0-1

[Event "2nd Hersonissos Open 2018"]
[Site "Hersonissos"]
[Date "2018.06.18"]
[Round "3"]
[White "Kealar, Konstantinos"]
[Black "Warnk, Torsten"]
[Result "0-1"]
[ECO "D60"]
[WhiteElo "1323"]
[BlackElo "1853"]
[Annotator "NA"]
[PlyCount "90"]
[EventDate "2018.06.16"]
[EventType "swiss"]
[EventCountry "GRE"]
[SourceTitle "playchess.com"]
[Source "ChessBase"]
[SourceQuality "1"]
[TimeControl "5400+30"]

1. d4 {[%emt 0:00:00]} d5 {[%emt 0:00:05]} 2. c4 {[%emt 0:00:00]} e6 {[%emt 0:00:39]} 3. Nf3 {[%emt 0:01:04]} Nf6 {[%emt 0:00:11]} 4. Bf4 {[%emt 0:00:51]} Bd6 {[%emt 0:03:15]} 5. Bg5 {[%emt 0:01:36]} Be7 {[%emt 0:04:16]} 6. Nc3 {[%emt 0:01:37]} Nbd7 {[%emt 0:01:47]} 7. e3 {[%emt 0:00:29]} O-O {[%emt 0:00:12]} 8. Bd3 {[%emt 0:00:24]} b6 {[%emt 0:01:13]} 9. Qc2 {[%emt 0:00:27]} dxc4 {[%emt 0:03:24]} 10. Bxc4 {[%emt 0:00:27]} Bb7 {[%emt 0:00:49]} 11. Bd3 {[%emt 0:01:27]} h6 {[%emt 0:00:56]} 12. h4 {[%emt 0:09:23]} c5 {[%emt 0:06:32]} 13. O-O-O {[%emt 0:13:26]} cxd4 {[%emt 0:04:34]} 14. Nxd4 {[%emt 0:03:14]} Nd5 {[%emt 0:01:49]} 15. Bxe7 {[%emt 0:04:28]} Qxe7 {[%emt 0:00:20]} 16. Kb1 {[%emt 0:03:25]} Nb4 {[%emt 0:05:34]} 17. Qe2 {[%emt 0:00:24]} Nc5 {[%emt 0:05:13]} 18. Bc4 {[%emt 0:02:15]} Ne4 {[%emt 0:02:57]} 19. Rc1 {[%emt 0:05:16]} Rfd8 {[%emt 0:08:33]} 20. Nxe4 {[%emt 0:08:42]} Bxe4+ {[%emt 0:00:11]} 21. Ka1 {[%emt 0:00:12]} Nc6 {[%emt 0:15:57]} 22. Nxc6 {[%emt 0:08:06]} Bxc6 {[%emt 0:00:08]} 23. f3 Bd5 {[%emt 0:00:51]} 24. Ba6 {[%emt 0:02:03]} Qb4 {[%emt 0:03:17]} 25. Rc3 {[%emt 0:02:25]} Rab8 {[%emt 0:03:45]} 26. Rd1 {[%emt 0:02:58]} Qxh4 {[%emt 0:02:43]} 27. a3 {[%emt 0:01:18]} Qa4 {[%emt 0:05:19]} 28. Rd4 {[%emt 0:00:53]} Qe8 {[%emt 0:00:22]} 29. Rc7 {[%emt 0:01:41]} Bb3 {[%emt 0:05:10]} 30. Rb4 {[%emt 0:01:21]} Rd1+ {[%emt 0:00:19]} 31. Qxd1 {[%emt 0:01:29]} Bxd1 {[%emt 0:00:03]} 32. Rd4 {[%emt 0:00:21]} Ba4 {[%emt 0:00:55]} 33. Ka2 {[%emt 0:00:46]} Bb5 {[%emt 0:00:44]} 34. Rxa7 {[%emt 0:02:11]} Bxa6 {[%emt 0:00:37]} 35. Rxa6 {[%emt 0:00:07]} Qc6 {[%emt 0:01:01]} 36. e4 {[%emt 0:01:00]} Ra8 {[%emt 0:00:28]} 37. Rxa8+ {[%emt 0:01:44]} Qxa8 {[%emt 0:00:01]} 38. Rb4 {[%emt 0:01:45]} Qc6 {[%emt 0:00:06]} 39. a4 {[%emt 0:00:48]} Kh7 {[%emt 0:00:03]} 40. Ka3 {[%emt 0:00:00]} Qc5 {[%emt 0:00:00]} 41. Kb3 {[%emt 0:00:00]} Qe3+ {[%emt 0:00:00]} 42. Ka2 {[%emt 0:00:00]} Kg6 {[%emt 0:00:00]} 43. Rb5 {[%emt 0:00:00]} f6 44. a5 {[%emt 0:00:00]} bxa5 {[%emt 0:00:00]} 45. Rxa5 {[%emt 0:00:00]} Qd2 {[%emt 0:00:00]} 0-1

[Event "2nd Hersonissos Open 2018"]
[Site "Hersonissos"]
[Date "2018.06.19"]
[Round "4"]
[White "Haug, Johannes"]
[Black "Serpetsidakis, Nikolaos"]
[Result "1-0"]
[ECO "A05"]
[WhiteElo "2401"]
[BlackElo "2126"]
[Annotator "NA"]
[PlyCount "91"]
[EventDate "2018.06.16"]
[EventType "swiss"]
[EventCountry "GRE"]
[SourceTitle "playchess.com"]
[Source "ChessBase"]
[SourceQuality "1"]
[TimeControl "5400+30"]

1. Nf3 {[%emt 0:00:00]} Nf6 {[%emt 0:00:13]} 2. g3 {[%emt 0:00:30]} d5 {[%emt 0:00:25]} 3. Bg2 {[%emt 0:00:05]} Bf5 {[%emt 0:00:46]} 4. O-O {[%emt 0:00:13]} e6 {[%emt 0:00:49]} 5. c4 {[%emt 0:00:15]} c6 {[%emt 0:00:29]} 6. d3 {[%emt 0:00:16]} dxc4 {[%emt 0:03:14]} 7. dxc4 {[%emt 0:00:16]} Qxd1 {[%emt 0:01:41]} 8. Rxd1 {[%emt 0:00:02]} Nbd7 {[%emt 0:00:48]} 9. Nc3 {[%emt 0:00:29]} e5 {[%emt 0:12:43]} 10. b3 {[%emt 0:09:07]} Bb4 {[%emt 0:04:11]} 11. Bb2 {[%emt 0:01:45]} O-O {[%emt 0:00:10]} 12. e4 {[%emt 0:13:17]} Bxc3 {[%emt 0:23:27]} 13. Bxc3 {[%emt 0:00:22]} Nxe4 {[%emt 0:01:09]} 14. Bb2 {[%emt 0:14:52]} Bg4 {[%emt 0:01:49]} 15. Re1 {[%emt 0:12:24]} Bxf3 {[%emt 0:08:02]} 16. Bxf3 {[%emt 0:00:27]} Ng5 {[%emt 0:00:13]} 17. Bg2 $11 {[%emt 0:00:46]} f6 {[%emt 0:00:30]} 18. f4 {[%emt 0:08:46]} Nf7 {[%emt 0:19:06]} 19. Rad1 {[%emt 0:09:45]} Rfd8 {[%emt 0:00:39]} 20. Bh3 {[%emt 0:00:51]} Nf8 {[%emt 0:13:46]} 21. Rxd8 {[%emt 0:00:19]} Rxd8 {[%emt 0:00:07]} 22. fxe5 {[%emt 0:00:04]} fxe5 {[%emt 0:00:15]} 23. Bxe5 {[%emt 0:00:40]} Nxe5 {[%emt 0:00:22]} 24. Rxe5 {[%emt 0:00:05]} Rd1+ {[%emt 0:01:49]} 25. Kf2 {[%emt 0:06:28]} Rd2+ {[%emt 0:00:05]} 26. Kf3 {[%emt 0:07:18]} Rxa2 {[%emt 0:01:30]} 27. Re8 {[%emt 0:00:08]} g6 {[%emt 0:04:52]} 28. Rb8 {[%emt 0:01:47]} b6 {[%emt 0:00:39]} 29. Bd7 {[%emt 0:00:58]} c5 {[%emt 0:00:36]} 30. Be6+ {[%emt 0:01:04]} Kg7 {[%emt 0:00:02]} 31. Bd5 {[%emt 0:00:01]} Rd2 {[%emt 0:01:02]} 32. Rb7+ {[%emt 0:00:11]} Kh8 {[%emt 0:00:30]} 33. Rf7 {[%emt 0:00:16]} Kg8 {[%emt 0:00:01]} 34. Rxa7+ {[%emt 0:00:21]} Kh8 {[%emt 0:00:01]} 35. Ke3 {[%emt 0:03:50]} Rd4 {[%emt 0:00:10]} 36. Rf7 {[%emt 0:03:07]} Kg8 {[%emt 0:00:01]} 37. Rb7+ {[%emt 0:00:25]} Kh8 {[%emt 0:00:08]} 38. Rxb6 {[%emt 0:00:18]} Nd7 {[%emt 0:01:39]} 39. Re6 {[%emt 0:00:32]} Nf8 {[%emt 0:01:28]} 40. Re8 {[%emt 0:00:00]} Kg7 {[%emt 0:00:00]} 41. Re7+ {[%emt 0:00:00]} Kh8 {[%emt 0:00:00]} 42. Rf7 {[%emt 0:00:00]} Kg8 {[%emt 0:00:00]} 43. Rf4+ {[%emt 0:00:00]} Kg7 {[%emt 0:00:00]} 44. Rxd4 {[%emt 0:00:00]} cxd4+ {[%emt 0:00:00]} 45. Kxd4 {[%emt 0:00:00]} Kf6 {[%emt 0:00:00]} 46. b4 {[%emt 0:00:00] Ke5+} 1-0

[Event "2nd Hersonissos Open 2018"]
[Site "Hersonissos"]
[Date "2018.06.19"]
[Round "4"]
[White "L'ami, Alina"]
[Black "Loshkarev, Dmitri"]
[Result "1-0"]
[ECO "D20"]
[WhiteElo "2307"]
[BlackElo "2089"]
[Annotator "NA"]
[PlyCount "85"]
[EventDate "2018.06.16"]
[EventType "swiss"]
[EventCountry "GRE"]
[SourceTitle "playchess.com"]
[Source "ChessBase"]
[SourceQuality "1"]
[TimeControl "5400+30"]

1. d4 {[%emt 0:00:00]} d5 {[%emt 0:04:17]} 2. c4 {[%emt 0:01:26]} dxc4 {[%emt 0:00:11]} 3. e4 {[%emt 0:00:09]} Nf6 {[%emt 0:00:13]} 4. e5 {[%emt 0:00:08]} Nd5 {[%emt 0:00:05]} 5. Bxc4 {[%emt 0:00:09]} Nb6 {[%emt 0:00:05]} 6. Bb3 {[%emt 0:00:04]} Nc6 {[%emt 0:00:57]} 7. Ne2 {[%emt 0:00:17]} Bg4 {[%emt 0:01:21]} 8. f3 {[%emt 0:06:04]} Bf5 {[%emt 0:00:29]} 9. Nbc3 {[%emt 0:00:15]} e6 {[%emt 0:00:23]} 10. O-O {[%emt 0:03:12]} Qd7 {[%emt 0:03:32]} 11. Be3 {[%emt 0:04:38]} h5 {[%emt 0:02:47]} 12. Qc1 {[%emt 0:18:36]} Bd3 {[%emt 0:07:19]} 13. Rd1 {[%emt 0:04:36]} Bxe2 {[%emt 0:03:12]} 14. Nxe2 {[%emt 0:00:02]} Nd5 {[%emt 0:03:38]} 15. Ba4 {[%emt 0:05:44]} Be7 {[%emt 0:05:44]} 16. Bf2 {[%emt 0:13:47]} O-O-O $16 {[%emt 0:03:47]} 17. a3 {[%emt 0:07:40]} Nb6 {[%emt 0:13:11]} 18. Bb5 {[%emt 0:04:55]} a6 {[%emt 0:02:08]} 19. Bxc6 {[%emt 0:04:41]} Qxc6 {[%emt 0:00:16]} 20. Qxc6 {[%emt 0:00:35]} bxc6 {[%emt 0:00:08]} 21. Rac1 {[%emt 0:00:34]} c5 {[%emt 0:04:06]} 22. dxc5 {[%emt 0:06:47]} Rxd1+ {[%emt 0:01:11]} 23. Rxd1 {[%emt 0:00:02]} Nd7 {[%emt 0:00:21]} 24. b4 {[%emt 0:01:36]} Nxe5 {[%emt 0:01:09]} 25. Nd4 {[%emt 0:05:48]} Kb7 {[%emt 0:01:26]} 26. Nb3 {[%emt 0:02:34]} Nc6 {[%emt 0:05:31]} 27. Kf1 {[%emt 0:01:32]} Rd8 {[%emt 0:00:32]} 28. Ke2 {[%emt 0:00:37]} Rxd1 {[%emt 0:04:26]} 29. Kxd1 {[%emt 0:00:01]} Bf6 {[%emt 0:00:18]} 30. Kc2 {[%emt 0:00:23]} Be5 {[%emt 0:04:50]} 31. h3 {[%emt 0:00:18]} Bf6 {[%emt 0:01:13]} 32. Be1 {[%emt 0:03:57]} g6 {[%emt 0:05:47]} 33. Bc3 {[%emt 0:02:43]} Be7 {[%emt 0:00:27]} 34. Kd3 {[%emt 0:00:24]} Bh4 {[%emt 0:06:00]} 35. a4 {[%emt 0:00:53]} Na7 {[%emt 0:04:56]} 36. Na5+ {[%emt 0:00:44]} Kc8 {[%emt 0:00:40]} 37. c6 {[%emt 0:01:22]} Kd8 {[%emt 0:06:25]} 38. Bd4 {[%emt 0:00:25]} Nc8 {[%emt 0:01:21]} 39. Nb7+ {[%emt 0:00:13]} Ke7 {[%emt 0:01:15]} 40. Kc4 {[%emt 0:00:00]} Bg3 {[%emt 0:00:00]} 41. b5 {[%emt 0:00:00]} Nd6+ {[%emt 0:00:00]} 42. Nxd6 {[%emt 0:00:00]} Kxd6 {[%emt 0:00:00]} 43. Bc5+ {[%emt 0:00:00]} 1-0

[Event "2nd Hersonissos Open 2018"]
[Site "Hersonissos"]
[Date "2018.06.19"]
[Round "4"]
[White "Lirindzakis, Timotheos"]
[Black "Kouvidis, Ioannis"]
[Result "1/2-1/2"]
[ECO "E92"]
[WhiteElo "2163"]
[BlackElo "1730"]
[Annotator "NA"]
[PlyCount "43"]
[EventDate "2018.06.16"]
[EventType "swiss"]
[EventCountry "GRE"]
[SourceTitle "playchess.com"]
[Source "ChessBase"]
[SourceQuality "1"]
[TimeControl "5400+30"]

1. d4 {[%emt 0:00:00]} Nf6 {[%emt 0:00:08]} 2. c4 {[%emt 0:00:00]} g6 {[%emt 0:00:05]} 3. Nc3 {[%emt 0:00:00]} Bg7 {[%emt 0:00:05]} 4. e4 {[%emt 0:00:00]} d6 {[%emt 0:00:05]} 5. Nf3 {[%emt 0:00:06]} O-O {[%emt 0:00:08]} 6. Be2 {[%emt 0:00:02]} e5 {[%emt 0:00:07]} 7. d5 {[%emt 0:00:19]} a5 {[%emt 0:00:58]} 8. Bg5 {[%emt 0:00:20]} Na6 {[%emt 0:01:23]} 9. Nd2 {[%emt 0:01:24]} Qe8 {[%emt 0:01:21]} 10. a3 {[%emt 0:04:42]} Bd7 {[%emt 0:07:08]} 11. b3 {[%emt 0:01:14]} Kh8 {[%emt 0:02:51]} 12. g4 {[%emt 0:10:27]} Ng8 {[%emt 0:03:01]} 13. Be3 {[%emt 0:07:04]} Qe7 {[%emt 0:04:54]} 14. h4 {[%emt 0:02:07]} f5 {[%emt 0:02:49]} 15. gxf5 {[%emt 0:06:32]} gxf5 {[%emt 0:00:52]} 16. exf5 {[%emt 0:00:40]} Bxf5 {[%emt 0:04:37]} 17. Nde4 {[%emt 0:01:19]} Nf6 $11 {[%emt 0:03:45]} 18. Ng3 {[%emt 0:03:31]} Bd7 {[%emt 0:03:20]} 19. h5 {[%emt 0:05:48]} h6 {[%emt 0:00:30]} 20. Qd2 {[%emt 0:05:08]} Nc5 {[%emt 0:01:10]} 21. Bd1 {[%emt 0:13:06]} e4 {[%emt 0:05:43]} 22. Bxc5 {[%emt 0:07:37]} 1/2-1/2

[Event "2nd Hersonissos Open 2018"]
[Site "Hersonissos"]
[Date "2018.06.19"]
[Round "4"]
[White "Vanheirzeele, Daniel"]
[Black "Umbetov, Kazybek"]
[Result "1/2-1/2"]
[ECO "A81"]
[WhiteElo "2156"]
[BlackElo "2001"]
[Annotator "NA"]
[PlyCount "25"]
[EventDate "2018.06.16"]
[EventType "swiss"]
[EventCountry "GRE"]
[SourceTitle "playchess.com"]
[Source "ChessBase"]
[SourceQuality "1"]
[TimeControl "5400+30"]

1. d4 {[%emt 0:00:00]} f5 {[%emt 0:00:08]} 2. g3 {[%emt 0:02:49]} Nf6 {[%emt 0:00:05]} 3. Bg2 {[%emt 0:00:05]} g6 {[%emt 0:00:08]} 4. c3 {[%emt 0:00:47]} Bg7 {[%emt 0:00:06]} 5. Nd2 {[%emt 0:00:47]} c6 {[%emt 0:00:18]} 6. Nh3 {[%emt 0:03:54]} O-O {[%emt 0:00:10]} 7. O-O {[%emt 0:07:18]} d6 {[%emt 0:01:19]} 8. Qb3+ {[%emt 0:01:18]} e6 {[%emt 0:00:28]} 9. e4 {[%emt 0:04:21]} Kh8 {[%emt 0:15:23]} 10. exf5 {[%emt 0:04:15]} exf5 {[%emt 0:00:40]} 11. Nf3 {[%emt 0:08:06]} Ne4 $16 {[%emt 0:15:03]} 12. Nf4 {[%emt 0:17:21]} Qf6 {[%emt 0:05:17]} 13. d5 {[%emt 0:11:04]} 1/2-1/2

[Event "2nd Hersonissos Open 2018"]
[Site "Hersonissos"]
[Date "2018.06.19"]
[Round "4"]
[White "Lobersli, Henrik Oie"]
[Black "Brokalakis - Gounaris, Christos"]
[Result "1-0"]
[ECO "C96"]
[WhiteElo "2134"]
[BlackElo "1851"]
[Annotator "NA"]
[PlyCount "51"]
[EventDate "2018.06.16"]
[EventType "swiss"]
[EventCountry "GRE"]
[SourceTitle "playchess.com"]
[Source "ChessBase"]
[SourceQuality "1"]
[TimeControl "5400+30"]

1. e4 {[%emt 0:00:00]} e5 {[%emt 0:00:13]} 2. Nf3 {[%emt 0:00:00]} Nc6 {[%emt 0:00:06]} 3. Bb5 {[%emt 0:00:18]} a6 {[%emt 0:00:11]} 4. Ba4 {[%emt 0:00:21]} Nf6 {[%emt 0:00:16]} 5. O-O {[%emt 0:00:27]} Be7 {[%emt 0:00:10]} 6. Re1 {[%emt 0:00:18]} b5 {[%emt 0:00:34]} 7. Bb3 {[%emt 0:00:10]} O-O {[%emt 0:01:19]} 8. h3 {[%emt 0:00:33]} d6 {[%emt 0:01:20]} 9. c3 {[%emt 0:00:28]} Na5 {[%emt 0:04:09]} 10. Bc2 {[%emt 0:01:07]} c5 {[%emt 0:00:15]} 11. d4 {[%emt 0:00:35]} Nc6 {[%emt 0:08:18]} 12. d5 {[%emt 0:01:27]} Na5 {[%emt 0:02:17]} 13. b3 {[%emt 0:04:41]} Re8 {[%emt 0:02:18]} 14. Nbd2 {[%emt 0:02:16]} Bf8 {[%emt 0:01:55]} 15. Nf1 {[%emt 0:01:47]} Bd7 {[%emt 0:02:51]} 16. Ng3 {[%emt 0:02:59]} g6 {[%emt 0:00:21]} 17. Nh2 {[%emt 0:12:26]} Bg7 {[%emt 0:09:48]} 18. f4 {[%emt 0:05:09]} Qb6 {[%emt 0:07:16]} 19. Kh1 {[%emt 0:01:07]} exf4 {[%emt 0:04:44]} 20. Bxf4 {[%emt 0:00:18]} Bc8 {[%emt 0:07:41]} 21. Qf3 {[%emt 0:14:04]} Ra7 {[%emt 0:10:27]} 22. Bg5 {[%emt 0:07:49]} Nd7 {[%emt 0:01:36]} 23. Ng4 {[%emt 0:00:34]} Ne5 {[%emt 0:05:43]} 24. Nf6+ {[%emt 0:04:06]} Kh8 {[%emt 0:02:03]} 25. Qf4 {[%emt 0:00:46]} Rf8 {[%emt 0:00:32]} 26. Qh4 {[%emt 0:00:56]} 1-0

[Event "2nd Hersonissos Open 2018"]
[Site "Hersonissos"]
[Date "2018.06.19"]
[Round "4"]
[White "Angermuende, Dirk"]
[Black "Fragiadakis, Emanouel"]
[Result "1-0"]
[ECO "C45"]
[WhiteElo "1966"]
[BlackElo "1813"]
[Annotator "NA"]
[PlyCount "78"]
[EventDate "2018.06.16"]
[EventType "swiss"]
[EventCountry "GRE"]
[SourceTitle "playchess.com"]
[Source "ChessBase"]
[SourceQuality "1"]
[TimeControl "5400+30"]

1. e4 {[%emt 0:00:00]} e5 {[%emt 0:00:04]} 2. Nf3 {[%emt 0:00:00]} Nc6 {[%emt 0:00:05]} 3. d4 {[%emt 0:00:00]} exd4 {[%emt 0:00:14]} 4. Nxd4 {[%emt 0:00:00]} Bc5 {[%emt 0:00:10]} 5. Be3 {[%emt 0:01:20]} Qf6 {[%emt 0:00:33]} 6. c3 {[%emt 0:00:16]} Nge7 {[%emt 0:00:37]} 7. Be2 {[%emt 0:01:23]} O-O {[%emt 0:01:05]} 8. O-O {[%emt 0:00:27]} b6 {[%emt 0:03:02]} 9. Qd2 {[%emt 0:01:59]} Qg6 {[%emt 0:06:51]} 10. b4 {[%emt 0:01:50]} Bxd4 {[%emt 0:02:04]} 11. cxd4 {[%emt 0:00:09]} Bb7 {[%emt 0:08:22]} 12. d5 {[%emt 0:02:57]} Nd8 {[%emt 0:04:10]} 13. Nc3 {[%emt 0:01:55]} d6 {[%emt 0:17:03]} 14. f4 {[%emt 0:04:47]} f5 {[%emt 0:03:16]} 15. e5 {[%emt 0:00:10]} Nf7 {[%emt 0:01:47]} 16. e6 {[%emt 0:01:45]} Nd8 $18 {[%emt 0:02:19]} (16... Nh6 {was worth a try.} 17. Rf3 Ng4) 17. Bf3 {[%emt 0:05:32]} c6 {[%emt 0:26:19]} 18. dxc6 {[%emt 0:02:34]} Bxc6 {[%emt 0:00:15]} 19. Qxd6 {[%emt 0:06:07]} Qxe6 {[%emt 0:01:57]} 20. Qxe6+ {[%emt 0:00:13]} Nxe6 {[%emt 0:00:04]} 21. Rae1 {[%emt 0:01:39]} Rf6 {[%emt 0:01:40]} 22. Bxc6 {[%emt 0:06:37]} Nxc6 {[%emt 0:00:01]} 23. Nd5 {[%emt 0:00:14]} Rf7 {[%emt 0:03:39]} 24. Bxb6 {[%emt 0:02:22]} Nxf4 {[%emt 0:00:47]} 25. Rxf4 {[%emt 0:00:29]} axb6 {[%emt 0:00:10]} 26. b5 {[%emt 0:00:31]} g5 {[%emt 0:02:48]} 27. Rc4 {[%emt 0:02:53]} Na5 {[%emt 0:00:25]} 28. Ra4 {[%emt 0:03:53]} Raa7 {[%emt 0:07:18]} 29. Nxb6 {[%emt 0:03:59]} Rfb7 {[%emt 0:00:07]} 30. Nc8 {[%emt 0:00:43]} Ra8 {[%emt 0:00:02]} 31. Re8+ {[%emt 0:07:36]} Kg7 {[%emt 0:00:08]} 32. Re7+ {[%emt 0:00:20]} Rxe7 {[%emt 0:01:03]} 33. Nxe7 {[%emt 0:00:09]} Ra7 {[%emt 0:03:32]} 34. Nxf5+ {[%emt 0:00:10]} Kf6 {[%emt 0:00:05]} 35. Nd4 {[%emt 0:00:15]} Rd7 {[%emt 0:01:04]} 36. Rxa5 {[%emt 0:00:37]} Rxd4 {[%emt 0:00:04]} 37. b6 {[%emt 0:00:21]} Rb4 {[%emt 0:00:24]} 38. Ra6 {[%emt 0:00:07]} Ke5 {[%emt 0:00:23]} 39. a4 {[%emt 0:00:08]} Ke4 {[%emt 0:00:33]} 1-0